Cogmind - Beta 15 @@@ ROGUE MODE // 2025.07.12 @ 22:25:11 Player: erfael Result: Self-destructed Performance ------------- Evolutions (1) 500 Regions Visited (3) 600 Robots Destroyed (21) 105 Value Destroyed (485) 485 Prototype IDs (0) 0 Alien Tech Used (0) 0 Bonus (0) 0 TOTAL SCORE: 1690 Bonus ------- None Cogmind --------- Core Integrity 308/400 Matter 146/300 Energy 125/125 System Corruption 0% Temperature Cool (0) Movement Walking (260) Ox2 Location -9/Materials Parts ------- > --- POWER (1) -------- Light Ion Engine > --- PROPULSION (3) --- Aluminum Leg > --- UTILITY (3) ------ Large Storage Unit Targeting Computer Light Armor Plating > --- WEAPON (2) ------- Light Assault Rifle Mini Grenade Launcher > --- INVENTORY (15) --- Light Ion Engine Light Treads Light Treads Wheel Wheel Large Storage Unit Targeting Computer Weapon Shielding EM Pulse Gun Small Laser Peak State ------------ > --- POWER ------------ Light Ion Engine > --- PROPULSION ------- Aluminum Leg Aluminum Leg Aluminum Leg > --- UTILITY ---------- Large Storage Unit Seismic Detector Targeting Computer > --- WEAPON ----------- Assault Rifle Mini Grenade Launcher > --- INVENTORY -------- Light Ion Engine Light Ion Engine Light Treads Light Treads Wheel Wheel Large Storage Unit Targeting Computer Weapon Shielding Light Armor Plating EM Pulse Gun Small Laser Light Assault Rifle [Rating: 11] Favorites ----------- Power Light Ion Engine Engine Light Ion Engine Propulsion Aluminum Leg Leg Aluminum Leg Utility Seismic Detector Device Seismic Detector Storage Large Storage Unit Processor Targeting Computer Protection Light Armor Plating Weapon Small Laser Energy Gun Small Laser Ballistic Gun Assault Rifle Launcher Mini Grenade Launcher Build | -11 -10 -10 -9 ------- Run | Yrd Mat Min Mat Slots Evolved 2 | . . . 2 Power . | . . . . Propulsion 1 | . . . 1 Utility 1 | . . . 1 Weapon . | . . . . Parts Attached 17 | 6 3 1 7 Power 2 | 1 . . 1 Engine 2 | 1 . . 1 Core . | . . . . Reactor . | . . . . Propulsion 4 | 1 1 . 2 Treads . | . . . . Leg 4 | 1 1 . 2 Wheel . | . . . . Hover . | . . . . Flight . | . . . . Utility 6 | 2 1 . 3 Device 1 | 1 . . . Storage 2 | 1 1 . . Processor 2 | . . . 2 Hackware . | . . . . Protection 1 | . . . 1 Artifact . | . . . . Weapon 5 | 2 1 1 1 Energy Gun 2 | 2 . . . Energy Cannon . | . . . . Ballistic Gun 2 | . 1 1 . Ballistic Cannon . | . . . . Launcher 1 | . . . 1 Special Weapon . | . . . . Impact Weapon . | . . . . Slashing Weapon . | . . . . Piercing Weapon . | . . . . Special Melee Weapon . | . . . . Unidentified Prototypes . | . . . . Parts Lost 6 | . . . 6 Power 1 | . . . 1 Propulsion 3 | . . . 3 Utility 1 | . . . 1 Weapon 1 | . . . 1 Highest Loss Streak 4 | . . . 4 To Critical Strikes . | . . . . Average Backups 10 | 6 9 13 11 Power 1 | 1 2 2 1 Propulsion 4 | 4 4 5 4 Utility 2 | . 1 5 3 Weapon 1 | . 1 1 2 Tool/Special . | . . . . Unused Backups 7 | . . . 7 Power 1 | . . . 1 Propulsion 4 | . . . 4 Utility 2 | . . . 2 Weapon . | . . . . Tool/Special . | . . . . Average Slot Usage (%) 94 | . 95 100 82 Engine 13 | . 14 14 9 Leg 25 | . 23 28 25 Device 12 | . 14 14 2 Storage 13 | . 14 14 11 Processor 1 | . . . 11 Energy Gun 13 | . 24 1 . Ballistic Gun 12 | . 3 26 9 Launcher 1 | . . . 9 Peak Build Rating 11 | 6 8 8 11 Average Rating 7 | 4 7 7 9 On Entrance 5 | . 6 8 8 Naked Turns . | . . . . Heaviest Build 28 | 12 27 27 28 Greatest Support 30 | 10 20 20 30 Greatest Overweight (x) 2 | 1 2 1 2 Average Overweight (x) . | . 1 1 . Largest Inventory Capacity 15 | 8 15 15 15 Average Capacity 13 | 7 13 15 15 Most Carried 14 | 8 13 14 13 Average Carried 10 | 6 9 13 11 Final Capacity 15 | 8 15 15 15 Final Carried 14 | 8 13 14 10 Class Distribution -------------------- 100% | Mutant Dominant Class ---------------- Mutant | -10/Materials Mutant | -10/Mines Mutant | -9/Materials Resources | -11 -10 -10 -9 ----------- Run | Yrd Mat Min Mat Matter Collected 429 | 240 40 70 79 Remotely . | . . . . Salvage Created 504 | 50 149 90 215 Parts 36 | 7 9 6 14 Haulers Intercepted . | . . . . Recyclers Shooed 1 | . 1 . . Parts Field Recycled . | . . . . Retrieved Matter . | . . . . Parts Self-Destructed . | . . . . Prevented . | . . . . Kills | -11 -10 -10 -9 ------- Run | Yrd Mat Min Mat Combat Hostiles Destroyed 15 | . 3 6 6 Guns 8 | . 2 6 . AOE 7 | . 1 . 6 Classes Destroyed 9 | 1 2 1 5 Worker 1 | . . . 1 Builder 1 | . . . 1 Tunneler 2 | 2 . . . Recycler 1 | . . . 1 Watcher 1 | . 1 . . Swarmer 6 | . . 6 . Grunt 6 | . 3 . 3 Brawler 1 | . . . 1 Sentry 2 | . . . 2 Best Kill Streak 5 | 1 3 3 5 Combat Bots Only 4 | . 2 3 4 Max Kills in Single Turn 2 | 1 1 1 2 Gunslinging . | . . . . Exploded 1 | . 1 . 1 Melee . | . . . . Uniques/NPCs Destroyed . | . . . . Combat | -11 -10 -10 -9 -------- Run | Yrd Mat Min Mat Hostile Shots Fired 81 | . 17 30 34 Missed 22 | . 5 9 8 Hits 59 | . 12 21 26 Projectile 59 | . 12 21 26 Critical Strikes 2 | . . 1 1 Damage Taken 906 | . 217 167 522 Core 211 | . 96 23 92 Absorbed by Shields . | . . . . Core Remaining (%) 76 | 100 . 52 . Volleys Fired 45 | 4 11 14 16 Largest 2 | 2 2 2 2 Hottest 80 | 80 80 60 50 Shots Fired 85 | 8 22 28 27 Gun 69 | 8 22 28 11 Cannon . | . . . . Launcher 16 | . . . 16 Special . | . . . . Kinetic 33 | . . 22 11 Thermal 21 | 4 11 6 . Explosive 16 | . . . 16 Electromagnetic 15 | 4 11 . . Robot Hit Streak 8 | 3 6 3 8 Robot Miss Streak 4 | 1 1 4 1 Penetration Max . | . . . . Secondary Targets 1 | . . 1 . Max Gunslinging Chain 1 | . . 1 . Shots Hit Robots 55 | 5 14 13 23 Core Hits 33 | 2 8 7 16 Critical Kills . | . . . . Critical Parts Destroyed . | . . . . Critical Strikes . | . . . . Melee Attacks . | . . . . Impact . | . . . . Slashing . | . . . . Piercing . | . . . . Sneak Attacks . | . . . . Combat Hostiles . | . . . . Follow-up Attacks . | . . . . Damage Inflicted 1263 | 62 309 157 735 Guns 499 | 62 177 157 103 Cannons . | . . . . Explosions 764 | . 132 . 632 Melee . | . . . . Ramming . | . . . . Kinetic 248 | . . 145 103 Thermal 211 | 22 177 12 . Explosive 632 | . . . 632 Electromagnetic 172 | 40 132 . . Impact . | . . . . Slashing . | . . . . Piercing . | . . . . Highest Corruption . | . . . . Average Corruption . | . . . . Corruption Purged . | . . . . Corruption Blocked . | . . . . Overload Shots . | . . . . Overflow Damage 32 | . . . 32 Projectiles . | . . . . Explosions 32 | . . . 32 Melee . | . . . . Knockbacks . | . . . . Impact . | . . . . Kinetic . | . . . . Secondary . | . . . . Self-Inflicted Damage 247 | . 62 . 185 Shots 8 | . 2 . 6 Rammed . | . . . . Targets Rammed . | . . . . Kicked . | . . . . Crushed . | . . . . Highest Temperature 237 | 18 237 . 29 Average Temperature 79 | 12 116 . 16 Received Heat Transfer 246 | . 87 . 159 Siege Activations . | . . . . Martial Activations . | . . . . Shielding Activations . | . . . . Robots Disrupted . | . . . . Combat Hostiles . | . . . . Robots Corrupted . | . . . . Combat Hostiles . | . . . . Parts Fried 1 | . 1 . . Impact Corruptions . | . . . . Robots Melted . | . . . . Combat Hostiles . | . . . . Parts Melted . | . . . . Heat Transferred 275 | 50 200 25 . Parts Sabotaged . | . . . . Parts Stolen . | . . . . Parts Stripped . | . . . . Power Chain Reactions 2 | . 2 . . Alert | -11 -10 -10 -9 ------- Run | Yrd Mat Min Mat Maximum Alert Level . | . . . . Low Security (%) 100 | 100 100 100 100 Level 1 . | . . . . Level 2 . | . . . . Level 3 . | . . . . Level 4 . | . . . . Level 5 . | . . . . High Security . | . . . . Max Security . | . . . . Peak Influence 179 | 5 69 104 179 Initial 4 | . . 4 . Average 30 | . 12 39 111 Influence Increases 551 | 10 112 140 289 Destroy 0b10 Robot/C 300 | . 60 120 120 Destroy 0b10 Robot/NC 30 | 10 5 . 15 Destroy Leader 72 | . 22 20 30 Successful Hack 5 | . 5 . . Disable Machine 60 | . 15 . 45 Destroy Structure 84 | . 5 . 79 Influence Decreases 392 | 10 99 153 130 Entered New Map 9 | . . 9 . Time Decay 323 | 10 99 144 70 Lost Part 60 | . . . 60 Squads Dispatched 1 | . 1 . . Investigation . | . . . . Extermination . | . . . . Reinforcement 1 | . 1 . . Assault . | . . . . Garrison . | . . . . Intercept . | . . . . Searches Triggered . | . . . . Construction Impeded . | . . . . Haulers Reinforced . | . . . . Active Scanning Responses . | . . . . Cargo Convoy Interrupts . | . . . . Stealth | -11 -10 -10 -9 --------- Run | Yrd Mat Min Mat Distress Signals . | . . . . Communications Jammed . | . . . . Distress Signals . | . . . . Times Spotted 19 | . 6 5 8 Peak Tracking Total 4 | . 3 3 4 Tactical Retreats . | . . . . Traps | -11 -10 -10 -9 ------- Run | Yrd Mat Min Mat Traps Triggered . | . . . . Indirectly . | . . . . Trap Hack Attempts . | . . . . Triggered . | . . . . Disarmed . | . . . . Reprogrammed . | . . . . Reused . | . . . . Traps Extracted . | . . . . Installed . | . . . . Triggered . | . . . . Machines | -11 -10 -10 -9 ---------- Run | Yrd Mat Min Mat Machines Disabled 4 | . 1 . 3 Max in Single Turn 2 | . 1 . 2 Machines Repaired . | . . . . Machines Dismantled . | . . . . Machines Sabotaged . | . . . . Overloaded Fab Kills . | . . . . Hacking | -11 -10 -10 -9 --------- Run | Yrd Mat Min Mat Machines Accessed 2 | . 2 . . Terminals 2 | . 2 . . Fabricators . | . . . . Repair Stations . | . . . . Recycling Units . | . . . . Scanalyzers . | . . . . Garrison Access . | . . . . Total Hacks 6 | . 6 . . Successful 1 | . 1 . . Failed 5 | . 5 . . Catastrophic 3 | . 3 . . Database Lockouts . | . . . . Manual 6 | . 6 . . Terminals 6 | . 6 . . Fabricators . | . . . . Repair Stations . | . . . . Recycling Units . | . . . . Scanalyzers . | . . . . Garrison Access . | . . . . Terminal Hacks . | . . . . Fabricator Hacks . | . . . . Repair Station Hacks . | . . . . Recycling Unit Hacks . | . . . . Scanalyzer . | . . . . Garrison Access Hacks . | . . . . Unauthorized Hacks 1 | . 1 . . Terminals 1 | . 1 . . Botnet 1 | . 1 . . Fabricators . | . . . . Repair Stations . | . . . . Recycling Units . | . . . . Scanalyzers . | . . . . Garrison Access . | . . . . Data Cores Recovered . | . . . . Used . | . . . . Hacking Detections 1 | . 1 . . Full Trace Events . | . . . . Feedback Events . | . . . . Feedback Blocked . | . . . . Robot Schematics Acquired . | . . . . Robots Built . | . . . . Authchips . | . . . . Time . | . . . . Total Robot Build Rating . | . . . . Part Schematics Acquired . | . . . . Parts Built . | . . . . Authchips . | . . . . Time . | . . . . Total Part Build Rating . | . . . . Parts Repaired . | . . . . Time . | . . . . Parts Recycled . | . . . . Recycled Matter . | . . . . Retrieved Matter . | . . . . Retrieved Components . | . . . . Parts Scanalyzed . | . . . . Part Schematics Acquired . | . . . . Parts Damaged . | . . . . Bothacking | -11 -10 -10 -9 ------------ Run | Yrd Mat Min Mat Used RIF Installer . | . . . . Robots Hacked . | . . . . Non-combat . | . . . . Combat . | . . . . Robot Hacks Applied . | . . . . Relay Couplers Released . | . . . . Fabnet Peak Effective % . | . . . . Robots Rewired . | . . . . Allies Hacked . | . . . . Hacks Repelled . | . . . . Allies | -11 -10 -10 -9 -------- Run | Yrd Mat Min Mat Total Allies . | . . . . Largest Group . | . . . . Highest-Rated Group . | . . . . Highest-Rated Ally . | . . . . Total Orders . | . . . . Ally Attacks . | . . . . Total Damage . | . . . . Kills . | . . . . Allies Corrupted . | . . . . Allies Melted . | . . . . Intel | -11 -10 -10 -9 ------- Run | Yrd Mat Min Mat Active Infowar (turns) 1063 | 53 593 387 30 Seismic 1063 | 53 593 387 30 Robot Analysis Total . | . . . . Derelict Logs Recovered . | . . . . Drone Launches . | . . . . Drone Recoveries . | . . . . Exploration | -11 -10 -10 -9 ------------- Run | Yrd Mat Min Mat Turns Passed 1368 | 215 593 387 173 Spaces Moved 623 | 100 266 182 75 Core 3 | 3 . . . Treads . | . . . . Legs 620 | 97 266 182 75 Wheels . | . . . . Hover . | . . . . Flight . | . . . . Fastest Speed 50 | 50 190 190 120 Average Speed 186 | 178 194 190 160 Slowest Speed 260 | 190 260 190 260 Overloaded Moves . | . . . . Propulsion Burnouts . | . . . . Robots Hopped . | . . . . Potential Cave-ins . | . . . . Cave-ins Triggered . | . . . . Exploration Rate (%) 30 | 6 57 44 14 Regions Visited 3 Branch Regions 1 Pre-discovered Areas . | . . . . Known Exits Taken . | . . . . Unknown Exits Taken 3 | 1 1 1 . Scrap Searched . | . . . . Spaces Dug . | . . . . Terrain Destroyed 132 | . 4 . 128 Melee . | . . . . Projectile . | . . . . AOE 132 | . 4 . 128 Terrain Rammed . | . . . . Walls Destroyed . | . . . . Machines Disabled . | . . . . Actions | -11 -10 -10 -9 --------- Run | Yrd Mat Min Mat Total 746 | 126 322 197 101 Wait 44 | 9 35 . . Move 620 | 99 265 181 75 Hop . | . . . . Pick Up 14 | 8 6 . . Fast Attach 10 | 6 . 1 3 Attach 7 | . 2 . 5 Detach 4 | . 1 1 2 Swap 1 | . 1 . . Drop 1 | . 1 . . Fire 45 | 4 11 14 16 Melee . | . . . . Ram . | . . . . Kick . | . . . . Crush . | . . . . Escape Stasis . | . . . . Rewire . | . . . . Trap . | . . . . Miscellaneous . | . . . . Route ------- -11/Scrapyard -10/Materials (discovered 3 exits: [*Mat] / [*Min x2]) -10/Mines -9/Materials History --------- Turn | Location | Event 14 | -11/Scrapyard | Discovered new exit (range 15) 216 | -11/Scrapyard | Entered Materials 312 | -10/Materials | Build established: Mutant 426 | -10/Materials | Discovered new exit (range 6) 510 | -10/Materials | Discovered new exit (range 11) 749 | -10/Materials | Discovered new exit (range 9) 809 | -10/Materials | Entered Mines 1110 | -10/Mines | Discovered new exit (range 7) 1196 | -10/Mines | Entered Materials 1196 | -9/Materials | Evolved 2 slots: Propulsion x1, Utility x1 1276 | -9/Materials | Lost 4 parts (1p1n1u1w) 1369 | -9/Materials | Self-destructed Last Messages --------------- 01278_ K-01 Serf destroyed. 01284_ B-36 Bruiser destroyed. 01284_ R-06 Scavenger destroyed. 01284_ Material Compactor disabled. 01285_ K-01 Serf collects debris. 01286_ Acquired 16 matter. 01287_ K-01 Serf collects debris. 01296_ Acquired 18 matter. 01298_ K-01 Serf collects debris. 01300_ The unstable cave ceiling collapses. 01301_ K-01 Serf collects debris. 01312_ Aluminum Leg destroyed. 01321_ The unstable cave ceiling collapses. 01321_ Aluminum Leg destroyed. 01322_ Y-45 Defender destroyed. 01327_ The unstable cave ceiling collapses. 01338_ Acquired 14 matter. 01365_ The unstable cave ceiling collapses. 01367_ K-01 Serf collects debris. 01368_ R-06 Scavenger inserts Wheel into recycling unit. Map ----- +----------------------------------------------------+ | | | | | | | | | | | | | | | ???????????????????????????????????? | | ???????????????????????????????????? | | ????####???????????????????????##??# | | ???## ######???????###????????## ### | | ???# ###???? #??????## | | ???# #????] #??????# # | | ???# "" #????! #??????# # | | ??### Y" ##??? #???????# % | | ??# r"" ## ?? #??????### | | ??## ## #??????# | | ???# ## #??????# | | ???## #### """ #??????# | | ????#### ## """ #??????# | | ??????# # """ ######### % | | ???##### # ##? # #* | | ???# # ##### # """ # | | ???# + """" !# % | | ???# "S # """""=% | | ???# """ @ kk !""""" # | | ???# "" [% """ + | | ???# = * w # ## | | ???###+### ## | | ?????? ##/######## | | ?????# ????? | | ?????# ?? | | ?????# ?? | | ?????# | | ?????# | | ?????# | | ?????#+####### | | ?????????????###+############# | | ?????????????????????????????# | | ??????????????????????????????? / | | ????????????????????????????????? / | | ???????????????????????????????????? | | ???????????????????????????????????? | | ???????????????????????????????????? | | ???????????????????????????????????? | | ???????????????????????????????????? | | ???????????????????????????????????? | | ???????????????????????????????????? | | ???????????????????????????????????? | | ???????????????????????????????????? | +----------------------------------------------------+ Best States ------------- Heat Dissipation 28 Energy Generation 10 Energy Capacity 125 Matter Stores 300 Matter Capacity 300 Sight Range 16 Terrain Scan Density 85 Armor Coverage 150 Evasion (%) 55 Targeting Accuracy 5 Item Schematics ----------------- None Robot Schematics ------------------ None Fabricated ------------ Nothing Repaired ---------- Nothing Alien Tech Used ----------------- None Achievements -------------- None Challenges ------------ None Game ------ Seed OvertunedThermicFirepult Manual? 0 Play Time 00:12:37 Cumulative 25.9 hours Start 2025.07.06 @ 22:17:32 End 2025.07.12 @ 22:25:11 Sessions 3 Manual Loads 0 Difficulty Rogue Special Mode None Game No. 26 Rogue 26 Adventurer 0 Explorer 0 Win Type - Total 0 Types 0/0/0/0/0/0/0/0/0/0 Lore% 21 Gallery% 17 Achievement% 17 Wizard Run 0 Options --------- Layout 0 ASCII 0 Keyboard 1 Movement Numpad Keybinds 0 Fullscreen 1 Font 18/SmallcapsGlow Map View 76x50 Zoom Use 0% Tactical HUD 1 Map Filters NONE Filters NONE Steam 1 RUN: 2d18c702-94cc-432a-9347-d6f20a1b4264